[Event "*** Titled Tuesday Blitz"]
[Site "Chess.com"]
[Date "2021.02.09"]
[Round "3"]
[White "seorobert1971"]
[Black "jefferyx"]
[Result "0-1"]
[WhiteElo "2708"]
[BlackElo "2994"]
[TimeControl "180+1"]
[EndTime "10:29:53 PST"]
[Termination "jefferyx won on time"]

1. e4 {[%clk 0:03:00.9]} 1... e6 {[%clk 0:02:58.7]} 2. d4 {[%clk 0:03:00.7]}
2... d5 {[%clk 0:02:59.2]} 3. exd5 {[%clk 0:03:01]} 3... exd5 {[%clk 0:03:00.1]}
4. Bd3 {[%clk 0:03:00.7]} 4... Nc6 {[%clk 0:02:53.6]} 5. c3 {[%clk 0:03:00]}
5... Bd6 {[%clk 0:02:53.5]} 6. Nf3 {[%clk 0:02:58.9]} 6... Nge7 {[%clk
0:02:53.4]} 7. O-O {[%clk 0:02:57.1]} 7... Bg4 {[%clk 0:02:53.4]} 8. Bg5 {[%clk
0:02:55.3]} 8... f6 {[%clk 0:02:52.3]} 9. Bh4 {[%clk 0:02:53.4]} 9... Qd7 {[%clk
0:02:52.7]} 10. Nbd2 {[%clk 0:02:53.3]} 10... O-O-O {[%clk 0:02:49.6]} 11. b4
{[%clk 0:02:52.6]} 11... h5 {[%clk 0:02:40.3]} 12. Bg3 {[%clk 0:02:51.9]} 12...
Bxg3 {[%clk 0:02:30.5]} 13. fxg3 {[%clk 0:02:48]} 13... Nf5 {[%clk 0:02:30]} 14.
Qe1 {[%clk 0:02:37]} 14... Rde8 {[%clk 0:02:29.1]} 15. Qf2 {[%clk 0:02:36.5]}
15... Nd6 {[%clk 0:02:20.5]} 16. Nb3 {[%clk 0:02:25.5]} 16... Ne4 {[%clk
0:02:19]} 17. Qc2 {[%clk 0:02:25.4]} 17... h4 {[%clk 0:02:05]} 18. gxh4 {[%clk
0:02:13.6]} 18... Bxf3 {[%clk 0:02:03.6]} 19. Rxf3 {[%clk 0:02:03.6]} 19... Rxh4
{[%clk 0:02:03.3]} 20. Nc5 {[%clk 0:02:02.9]} 20... Qg4 {[%clk 0:01:54.3]} 21.
Raf1 {[%clk 0:01:40]} 21... Reh8 {[%clk 0:01:47.7]} 22. Bxe4 {[%clk 0:01:33.2]}
22... dxe4 {[%clk 0:01:48.6]} 23. Rg3 {[%clk 0:01:28.3]} 23... Rxh2 {[%clk
0:01:24.6]} 24. Rxg4 {[%clk 0:01:27.8]} 24... e3 {[%clk 0:01:25.1]} 25. Qf5+
{[%clk 0:01:22.2]} 25... Kb8 {[%clk 0:01:25.2]} 26. Rh4 {[%clk 0:00:25.4]} 26...
R2xh4 {[%clk 0:01:22.1]} 27. Qh3 {[%clk 0:00:21.5]} 27... Rxh3 {[%clk
0:01:20.8]} 28. gxh3 {[%clk 0:00:21.6]} 28... Rxh3 {[%clk 0:01:20.8]} 29. Kg2
{[%clk 0:00:20.9]} 29... Rh5 {[%clk 0:01:19.8]} 30. Re1 {[%clk 0:00:20.4]} 30...
b6 {[%clk 0:01:18.3]} 31. Nd3 {[%clk 0:00:19.2]} 31... a5 {[%clk 0:01:15]} 32.
a3 {[%clk 0:00:17.3]} 32... axb4 {[%clk 0:00:50.3]} 33. axb4 {[%clk 0:00:18.2]}
33... Kc8 {[%clk 0:00:51]} 34. Rxe3 {[%clk 0:00:18.1]} 34... Kd7 {[%clk
0:00:51.7]} 35. Nf4 {[%clk 0:00:17.1]} 35... Rf5 {[%clk 0:00:50]} 36. Ne6 {[%clk
0:00:16.3]} 36... Nd8 {[%clk 0:00:40.2]} 37. Nf8+ {[%clk 0:00:14.7]} 37... Kd6
{[%clk 0:00:40.7]} 38. Re8 {[%clk 0:00:14.5]} 38... Nf7 {[%clk 0:00:33.9]} 39.
c4 {[%clk 0:00:14.1]} 39... Ng5 {[%clk 0:00:34]} 40. Kg3 {[%clk 0:00:08.8]}
40... Rf3+ {[%clk 0:00:33.6]} 41. Kg4 {[%clk 0:00:08.6]} 41... Rd3 {[%clk
0:00:32.8]} 42. c5+ {[%clk 0:00:08.4]} 42... Kc6 {[%clk 0:00:31.1]} 43. Rd8
{[%clk 0:00:08.1]} 43... bxc5 {[%clk 0:00:27]} 44. bxc5 {[%clk 0:00:09]} 44...
Nf7 {[%clk 0:00:26.4]} 45. Re8 {[%clk 0:00:06]} 45... Rxd4+ {[%clk 0:00:26.1]}
46. Kf5 {[%clk 0:00:05.3]} 46... Ng5 {[%clk 0:00:17.7]} 47. Kg6 {[%clk 0:00:05]}
47... Kxc5 {[%clk 0:00:11.5]} 48. Kxg7 {[%clk 0:00:05]} 48... Rd6 {[%clk
0:00:11.7]} 49. Kg6 {[%clk 0:00:03.8]} 49... Kd5 {[%clk 0:00:05.8]} 50. Kf5
{[%clk 0:00:04.7]} 50... c5 {[%clk 0:00:05.9]} 51. Re1 {[%clk 0:00:04.4]} 51...
Nf3 {[%clk 0:00:04.8]} 52. Rd1+ {[%clk 0:00:04.1]} 52... Nd4+ {[%clk 0:00:05.7]}
53. Kf4 {[%clk 0:00:04.2]} 53... c4 {[%clk 0:00:06.1]} 54. Ng6 {[%clk
0:00:05.1]} 54... c3 {[%clk 0:00:06.1]} 55. Ke3 {[%clk 0:00:05.1]} 55... Kc4
{[%clk 0:00:05.8]} 56. Nf4 {[%clk 0:00:04.5]} 56... c2 {[%clk 0:00:06.3]} 57.
Rc1 {[%clk 0:00:04.3]} 57... Kc3 {[%clk 0:00:07.1]} 0-1

[Event "*** Titled Tuesday Blitz"]
[Site "Chess.com"]
[Date "2021.02.09"]
[Round "3"]
[White "manitodeplomo"]
[Black "CrushingKings"]
[Result "1-0"]
[WhiteElo "2629"]
[BlackElo "2411"]
[TimeControl "180+1"]
[EndTime "10:29:55 PST"]
[Termination "manitodeplomo won on time"]

1. Nc3 {[%clk 0:03:00.9]} 1... c5 {[%clk 0:02:42.1]} 2. d4 {[%clk 0:03:01.8]}
2... cxd4 {[%clk 0:02:40.9]} 3. Qxd4 {[%clk 0:03:02]} 3... Nc6 {[%clk
0:02:40.3]} 4. Qh4 {[%clk 0:03:02]} 4... d5 {[%clk 0:02:22.1]} 5. Bd2 {[%clk
0:03:01]} 5... d4 {[%clk 0:02:21]} 6. Ne4 {[%clk 0:03:00.3]} 6... Bf5 {[%clk
0:02:18.4]} 7. O-O-O {[%clk 0:02:57.5]} 7... Qd5 {[%clk 0:02:06.4]} 8. Ng3
{[%clk 0:02:41.3]} 8... Qxa2 {[%clk 0:02:04.5]} 9. Bf4 {[%clk 0:02:30.9]} 9...
Bg6 {[%clk 0:01:37.1]} 10. e4 {[%clk 0:02:25.4]} 10... dxe3 {[%clk 0:01:31.2]}
11. Bxe3 {[%clk 0:01:53.9]} 11... Qa1+ {[%clk 0:01:28.8]} 12. Kd2 {[%clk
0:01:54]} 12... O-O-O+ {[%clk 0:01:22.1]} 13. Bd3 {[%clk 0:01:53.2]} 13... Qxb2
{[%clk 0:01:19.1]} 14. Ke1 {[%clk 0:01:40.2]} 14... Nf6 {[%clk 0:01:02.3]} 15.
Nf3 {[%clk 0:01:32.6]} 15... Bxd3 {[%clk 0:00:57.4]} 16. cxd3 {[%clk 0:01:31.1]}
16... e6 {[%clk 0:00:57.6]} 17. Qc4 {[%clk 0:01:19.1]} 17... Bb4+ {[%clk
0:00:51.5]} 18. Bd2 {[%clk 0:01:11.6]} 18... Bxd2+ {[%clk 0:00:43.9]} 19. Rxd2
{[%clk 0:01:10.9]} 19... Qa1+ {[%clk 0:00:41.8]} 20. Ke2 {[%clk 0:01:11]} 20...
Qa5 {[%clk 0:00:36.7]} 21. Rb1 {[%clk 0:01:02.9]} 21... Nd5 {[%clk 0:00:35.2]}
22. Ne4 {[%clk 0:00:52.5]} 22... f5 {[%clk 0:00:31.3]} 23. Ra2 {[%clk
0:00:51.6]} 23... Qxa2+ {[%clk 0:00:14.7]} 24. Qxa2 {[%clk 0:00:50.9]} 24...
fxe4 {[%clk 0:00:14.9]} 25. Qb2 {[%clk 0:00:15.8]} 25... exf3+ {[%clk
0:00:14.4]} 26. Kxf3 {[%clk 0:00:16.3]} 26... Nb6 {[%clk 0:00:13.7]} 27. g3
{[%clk 0:00:14.6]} 27... Rhf8+ {[%clk 0:00:13.2]} 28. Kg2 {[%clk 0:00:14.8]}
28... Rxd3 {[%clk 0:00:13.5]} 29. Qxg7 {[%clk 0:00:14.5]} 29... Rdf3 {[%clk
0:00:14]} 30. Rf1 {[%clk 0:00:11.9]} 30... Nd5 {[%clk 0:00:10.1]} 31. Qxh7
{[%clk 0:00:10]} 31... Ne3+ {[%clk 0:00:10]} 32. fxe3 {[%clk 0:00:10]} 32...
Rxf1 {[%clk 0:00:10.9]} 33. Qe4 {[%clk 0:00:09.7]} 33... R1f2+ {[%clk
0:00:08.9]} 34. Kg1 {[%clk 0:00:09.6]} 34... a5 {[%clk 0:00:08.7]} 35. h4 {[%clk
0:00:08.2]} 35... a4 {[%clk 0:00:07.7]} 36. Qxe6+ {[%clk 0:00:08.1]} 36... Kb8
{[%clk 0:00:07.4]} 37. h5 {[%clk 0:00:08.5]} 37... a3 {[%clk 0:00:07.5]} 38.
Qd6+ {[%clk 0:00:08.2]} 38... Kc8 {[%clk 0:00:05.2]} 39. Qxa3 {[%clk 0:00:08.4]}
39... Rf1+ {[%clk 0:00:05.6]} 40. Kg2 {[%clk 0:00:08.1]} 40... R8f3 {[%clk
0:00:06]} 41. h6 {[%clk 0:00:06.6]} 41... R1f2+ {[%clk 0:00:06.3]} 42. Kh3
{[%clk 0:00:06.3]} 42... Rf6 {[%clk 0:00:03.1]} 43. h7 {[%clk 0:00:04.7]} 43...
Rh6+ {[%clk 0:00:03.5]} 44. Kg4 {[%clk 0:00:05.1]} 44... Rxh7 {[%clk 0:00:04.2]}
45. Qd6 {[%clk 0:00:03.7]} 45... Rhf7 {[%clk 0:00:05.1]} 46. Qe6+ {[%clk
0:00:03.5]} 46... Kb8 {[%clk 0:00:05.6]} 47. e4 {[%clk 0:00:04]} 47... Ka8
{[%clk 0:00:06.3]} 48. Qd6 {[%clk 0:00:03.6]} 48... Ka7 {[%clk 0:00:06.4]} 49.
e5 {[%clk 0:00:03.8]} 49... Nxe5+ {[%clk 0:00:05.4]} 50. Qxe5 {[%clk 0:00:03.4]}
50... Rg7+ {[%clk 0:00:06]} 51. Qxg7 {[%clk 0:00:03.3]} 51... Rf4+ {[%clk
0:00:06.1]} 52. Kxf4 {[%clk 0:00:03.1]} 52... Kb6 {[%clk 0:00:05.9]} 53. Qb2+
{[%clk 0:00:04]} 53... Ka6 {[%clk 0:00:05.9]} 54. g4 {[%clk 0:00:04.9]} 54...
Ka7 {[%clk 0:00:06.1]} 55. g5 {[%clk 0:00:05.8]} 55... Kb8 {[%clk 0:00:06.1]}
56. g6 {[%clk 0:00:06.7]} 56... Kc8 {[%clk 0:00:06.4]} 57. g7 {[%clk 0:00:07.6]}
57... Kc7 {[%clk 0:00:06.8]} 58. Qf6 {[%clk 0:00:07.9]} 58... b6 {[%clk
0:00:06.4]} 59. Ke3 {[%clk 0:00:08.8]} 1-0

[Event "*** Titled Tuesday Blitz"]
[Site "Chess.com"]
[Date "2021.02.09"]
[Round "3"]
[White "Cambek64"]
[Black "enriquetejedor"]
[Result "0-1"]
[WhiteElo "2346"]
[BlackElo "2529"]
[TimeControl "180+1"]
[EndTime "10:29:55 PST"]
[Termination "enriquetejedor won on time"]

1. e4 {[%clk 0:02:53.5]} 1... c5 {[%clk 0:01:57.9]} 2. Nf3 {[%clk 0:02:49.2]}
2... Nc6 {[%clk 0:01:58]} 3. Bb5 {[%clk 0:02:47.9]} 3... d6 {[%clk 0:01:57.7]}
4. O-O {[%clk 0:02:45.4]} 4... Nf6 {[%clk 0:01:57.2]} 5. Re1 {[%clk 0:02:45.9]}
5... Bd7 {[%clk 0:01:55.3]} 6. c3 {[%clk 0:02:44.2]} 6... a6 {[%clk 0:01:54.8]}
7. Bf1 {[%clk 0:02:44.7]} 7... Bg4 {[%clk 0:01:54]} 8. h3 {[%clk 0:02:42.9]}
8... Bxf3 {[%clk 0:01:53.2]} 9. Qxf3 {[%clk 0:02:41.6]} 9... g6 {[%clk
0:01:54.1]} 10. d3 {[%clk 0:02:39.2]} 10... Bg7 {[%clk 0:01:53.4]} 11. Nd2
{[%clk 0:02:39.8]} 11... O-O {[%clk 0:01:53.1]} 12. Qd1 {[%clk 0:02:39.9]} 12...
b5 {[%clk 0:01:48.1]} 13. Nf3 {[%clk 0:02:40.5]} 13... Nd7 {[%clk 0:01:37.6]}
14. d4 {[%clk 0:02:40.8]} 14... cxd4 {[%clk 0:01:30.1]} 15. cxd4 {[%clk
0:02:39.7]} 15... Nb6 {[%clk 0:01:29.6]} 16. b3 {[%clk 0:02:28.6]} 16... Rc8
{[%clk 0:01:26.2]} 17. Bb2 {[%clk 0:02:28.8]} 17... Nb4 {[%clk 0:01:24.3]} 18.
Re2 {[%clk 0:02:22.8]} 18... d5 {[%clk 0:01:19.6]} 19. e5 {[%clk 0:02:17.8]}
19... e6 {[%clk 0:01:19.3]} 20. a3 {[%clk 0:02:15.5]} 20... Nc6 {[%clk
0:01:18.4]} 21. Rc2 {[%clk 0:02:10.9]} 21... Qd7 {[%clk 0:01:14.5]} 22. Qd2
{[%clk 0:01:58.9]} 22... Rc7 {[%clk 0:01:06.7]} 23. Rac1 {[%clk 0:01:57.3]}
23... Rfc8 {[%clk 0:01:06.4]} 24. a4 {[%clk 0:01:44.4]} 24... bxa4 {[%clk
0:00:50.4]} 25. Bxa6 {[%clk 0:01:41.8]} 25... axb3 {[%clk 0:00:50.3]} 26. Bxc8
{[%clk 0:01:38.6]} 26... Qxc8 {[%clk 0:00:51.2]} 27. Rc3 {[%clk 0:01:05.1]}
27... Nc4 {[%clk 0:00:51.3]} 28. Qe2 {[%clk 0:00:46.4]} 28... N6a5 {[%clk
0:00:41.7]} 29. Ra1 {[%clk 0:00:25.6]} 29... Bf8 {[%clk 0:00:33.7]} 30. Ne1
{[%clk 0:00:21.8]} 30... Bb4 {[%clk 0:00:30.9]} 31. Nd3 {[%clk 0:00:21.4]} 31...
Bxc3 {[%clk 0:00:22.2]} 32. Bxc3 {[%clk 0:00:22]} 32... Nc6 {[%clk 0:00:16.9]}
33. Nc5 {[%clk 0:00:17.2]} 33... N6xe5 {[%clk 0:00:10.1]} 34. Nxe6 {[%clk
0:00:13.8]} 34... Qxe6 {[%clk 0:00:08.5]} 35. dxe5 {[%clk 0:00:14.1]} 35... Kg7
{[%clk 0:00:05.8]} 36. Ra8 {[%clk 0:00:11.5]} 36... Rd7 {[%clk 0:00:03.7]} 37.
Bd4 {[%clk 0:00:09.1]} 37... h6 {[%clk 0:00:02.6]} 38. Rb8 {[%clk 0:00:07.2]}
38... b2 {[%clk 0:00:02]} 39. Bxb2 {[%clk 0:00:07.1]} 39... d4 {[%clk
0:00:01.9]} 40. Rb4 {[%clk 0:00:02]} 40... d3 {[%clk 0:00:02.5]} 41. Qd1 {[%clk
0:00:02.6]} 41... Nxb2 {[%clk 0:00:02.8]} 42. Rxb2 {[%clk 0:00:03]} 42... Qxe5
{[%clk 0:00:03.2]} 43. Rd2 {[%clk 0:00:03.7]} 43... Qd4 {[%clk 0:00:03.4]} 44.
g3 {[%clk 0:00:03.8]} 44... Qc4 {[%clk 0:00:03.4]} 45. h4 {[%clk 0:00:03.5]}
45... h5 {[%clk 0:00:03.2]} 46. Kg2 {[%clk 0:00:03.3]} 46... Qe4+ {[%clk
0:00:03.3]} 47. Qf3 {[%clk 0:00:03.5]} 47... Qc4 {[%clk 0:00:02.9]} 48. Qe3
{[%clk 0:00:02.4]} 48... Qd5+ {[%clk 0:00:02.5]} 0-1

[Event "*** Titled Tuesday Blitz"]
[Site "Chess.com"]
[Date "2021.02.09"]
[Round "3"]
[White "oykuince"]
[Black "Michaelson_11"]
[Result "0-1"]
[WhiteElo "1972"]
[BlackElo "2278"]
[TimeControl "180+1"]
[EndTime "10:29:55 PST"]
[Termination "Michaelson_11 won on time"]

1. e4 {[%clk 0:03:00.9]} 1... e6 {[%clk 0:02:57.4]} 2. d4 {[%clk 0:03:00.2]}
2... d5 {[%clk 0:02:58.3]} 3. Nd2 {[%clk 0:03:00.3]} 3... c5 {[%clk 0:02:49.6]}
4. exd5 {[%clk 0:02:59.9]} 4... exd5 {[%clk 0:02:50.5]} 5. Ngf3 {[%clk
0:02:58.4]} 5... Nc6 {[%clk 0:02:49.7]} 6. Bb5 {[%clk 0:02:54.4]} 6... Qe7+
{[%clk 0:02:41.7]} 7. Ne5 {[%clk 0:02:43.1]} 7... f6 {[%clk 0:02:27]} 8. O-O
{[%clk 0:02:38.8]} 8... fxe5 {[%clk 0:02:25.7]} 9. dxe5 {[%clk 0:02:37.3]} 9...
Be6 {[%clk 0:02:05.4]} 10. Nf3 {[%clk 0:02:30.2]} 10... h6 {[%clk 0:01:43.2]}
11. c3 {[%clk 0:01:52.2]} 11... Qf7 {[%clk 0:01:31.2]} 12. Qa4 {[%clk
0:01:18.8]} 12... Ne7 {[%clk 0:01:17.1]} 13. Be3 {[%clk 0:01:13.6]} 13... g5
{[%clk 0:00:32.1]} 14. Bxc5 {[%clk 0:01:11.9]} 14... Bg7 {[%clk 0:00:31.8]} 15.
Bxe7 {[%clk 0:00:52.2]} 15... Qxe7 {[%clk 0:00:30.9]} 16. Bxc6+ {[%clk
0:00:51.1]} 16... bxc6 {[%clk 0:00:29.9]} 17. Qxc6+ {[%clk 0:00:51.7]} 17... Kf7
{[%clk 0:00:29.8]} 18. Nd4 {[%clk 0:00:43]} 18... Rhc8 {[%clk 0:00:20.1]} 19.
Qa6 {[%clk 0:00:32.6]} 19... Rc7 {[%clk 0:00:05.8]} 20. f4 {[%clk 0:00:30.5]}
20... gxf4 {[%clk 0:00:02]} 21. Rxf4+ {[%clk 0:00:29.3]} 21... Kg8 {[%clk
0:00:02.9]} 22. Qxe6+ {[%clk 0:00:25.8]} 22... Qxe6 {[%clk 0:00:02.9]} 23. Nxe6
{[%clk 0:00:25.9]} 23... Re7 {[%clk 0:00:03.2]} 24. Nxg7 {[%clk 0:00:24.2]}
24... Kxg7 {[%clk 0:00:04.1]} 25. Rd1 {[%clk 0:00:19.4]} 25... Rxe5 {[%clk
0:00:03]} 26. Rg4+ {[%clk 0:00:17.2]} 26... Kf6 {[%clk 0:00:01.6]} 27. Rgd4
{[%clk 0:00:16.3]} 27... Ke6 {[%clk 0:00:02]} 28. Kf2 {[%clk 0:00:15.6]} 28...
Rb8 {[%clk 0:00:02.1]} 29. R1d2 {[%clk 0:00:14.7]} 29... Rf8+ {[%clk 0:00:02.7]}
30. Kg3 {[%clk 0:00:14.4]} 30... Rff5 {[%clk 0:00:03.1]} 31. h4 {[%clk
0:00:13.6]} 31... Rf6 {[%clk 0:00:03.1]} 32. Kh2 {[%clk 0:00:12.5]} 32... Rg6
{[%clk 0:00:03.5]} 33. g3 {[%clk 0:00:12]} 33... Rf6 {[%clk 0:00:03.3]} 34. Kh3
{[%clk 0:00:11.7]} 34... Rf1 {[%clk 0:00:03.2]} 35. Kg2 {[%clk 0:00:10.6]} 35...
Ref5 {[%clk 0:00:03.6]} 36. Re2+ {[%clk 0:00:10.2]} 36... Kd6 {[%clk 0:00:03.9]}
37. Rdd2 {[%clk 0:00:10.3]} 37... R5f3 {[%clk 0:00:04.1]} 38. Rf2 {[%clk
0:00:10.3]} 38... R1xf2+ {[%clk 0:00:04.3]} 39. Rxf2 {[%clk 0:00:09.9]} 39...
Rd3 {[%clk 0:00:04.5]} 40. Re2 {[%clk 0:00:09.6]} 40... Kc5 {[%clk 0:00:04.4]}
41. g4 {[%clk 0:00:09.4]} 41... Rd1 {[%clk 0:00:03.4]} 42. Kf3 {[%clk
0:00:08.9]} 42... Rf1+ {[%clk 0:00:03.2]} 43. Ke3 {[%clk 0:00:08.7]} 43... Rg1
{[%clk 0:00:03.3]} 44. Kf4 {[%clk 0:00:08.8]} 44... Rh1 {[%clk 0:00:03.4]} 45.
h5 {[%clk 0:00:08.2]} 45... Rg1 {[%clk 0:00:03.3]} 46. Kf5 {[%clk 0:00:07.1]}
46... Kc4 {[%clk 0:00:03.3]} 47. Kg6 {[%clk 0:00:07]} 47... Rxg4+ {[%clk
0:00:03.3]} 48. Kxh6 {[%clk 0:00:07.2]} 48... Kd3 {[%clk 0:00:03.8]} 49. Rf2
{[%clk 0:00:06.5]} 49... a5 {[%clk 0:00:03.1]} 50. Rf5 {[%clk 0:00:06.2]} 50...
Kc2 {[%clk 0:00:02.8]} 51. Rxd5 {[%clk 0:00:05.6]} 51... a4 {[%clk 0:00:03.3]}
52. Ra5 {[%clk 0:00:05.3]} 52... Kxb2 {[%clk 0:00:03.2]} 0-1

[Event "*** Titled Tuesday Blitz"]
[Site "Chess.com"]
[Date "2021.02.09"]
[Round "3"]
[White "PavelChernomordik"]
[Black "SaqoChess_Twitch"]
[Result "1/2-1/2"]
[WhiteElo "2382"]
[BlackElo "2546"]
[TimeControl "180+1"]
[EndTime "10:29:56 PST"]
[Termination "Game drawn - insufficient material"]

1. e4 {[%clk 0:03:00.9]} 1... c5 {[%clk 0:03:00.1]} 2. Nc3 {[%clk 0:03:00.3]}
2... d6 {[%clk 0:03:00.8]} 3. f4 {[%clk 0:02:59.8]} 3... Nf6 {[%clk 0:03:01.7]}
4. Nf3 {[%clk 0:02:59.4]} 4... e6 {[%clk 0:03:02]} 5. g3 {[%clk 0:02:57.5]} 5...
Be7 {[%clk 0:03:02.4]} 6. Bg2 {[%clk 0:02:57.7]} 6... O-O {[%clk 0:03:03.3]} 7.
O-O {[%clk 0:02:57.9]} 7... Nc6 {[%clk 0:03:04.2]} 8. d3 {[%clk 0:02:57.7]} 8...
d5 {[%clk 0:03:04.3]} 9. e5 {[%clk 0:02:56.7]} 9... Nd7 {[%clk 0:03:04.3]} 10.
Qe2 {[%clk 0:02:52.8]} 10... b6 {[%clk 0:03:03.4]} 11. f5 {[%clk 0:02:45]} 11...
exf5 {[%clk 0:02:53.4]} 12. Nxd5 {[%clk 0:02:39.3]} 12... Re8 {[%clk 0:02:46]}
13. e6 {[%clk 0:02:21.5]} 13... Nf6 {[%clk 0:02:35.6]} 14. exf7+ {[%clk
0:02:14.7]} 14... Kxf7 {[%clk 0:02:35.2]} 15. Ng5+ {[%clk 0:02:13.8]} 15... Kg8
{[%clk 0:02:35.3]} 16. Nxe7+ {[%clk 0:02:07.3]} 16... Rxe7 {[%clk 0:02:31.7]}
17. Qd1 {[%clk 0:02:03]} 17... Bb7 {[%clk 0:02:28.2]} 18. Bf4 {[%clk 0:02:00.4]}
18... h6 {[%clk 0:02:27.9]} 19. Nf3 {[%clk 0:01:56.4]} 19... g5 {[%clk
0:02:27.9]} 20. Nxg5 {[%clk 0:01:51.3]} 20... hxg5 {[%clk 0:02:26.4]} 21. Bxg5
{[%clk 0:01:50.6]} 21... Qd4+ {[%clk 0:02:18.7]} 22. Kh1 {[%clk 0:01:49.9]}
22... Rh7 {[%clk 0:02:01.4]} 23. c3 {[%clk 0:01:31.3]} 23... Qd6 {[%clk
0:01:51.6]} 24. Rxf5 {[%clk 0:01:29.2]} 24... Rf8 {[%clk 0:01:50.4]} 25. Qf1
{[%clk 0:01:22.7]} 25... Nd7 {[%clk 0:01:47.3]} 26. Bd5+ {[%clk 0:01:21.4]}
26... Kh8 {[%clk 0:01:45.3]} 27. c4 {[%clk 0:01:10]} 27... Rxf5 {[%clk
0:01:40.7]} 28. Qxf5 {[%clk 0:01:09]} 28... Nd4 {[%clk 0:01:40.6]} 29. Qe4
{[%clk 0:01:03.7]} 29... Bxd5 {[%clk 0:01:39.6]} 30. cxd5 {[%clk 0:01:03.2]}
30... Rg7 {[%clk 0:01:18.6]} 31. Qe8+ {[%clk 0:00:58.1]} 31... Kh7 {[%clk
0:01:18.1]} 32. Qh5+ {[%clk 0:00:57.3]} 32... Kg8 {[%clk 0:01:17.8]} 33. Bf4
{[%clk 0:00:54.6]} 33... Qg6 {[%clk 0:01:15.8]} 34. Qxg6 {[%clk 0:00:52.2]}
34... Rxg6 {[%clk 0:01:16.7]} 35. Re1 {[%clk 0:00:52.4]} 35... Kf7 {[%clk
0:01:11.5]} 36. h4 {[%clk 0:00:49.1]} 36... Rg8 {[%clk 0:00:56]} 37. h5 {[%clk
0:00:44.2]} 37... Re8 {[%clk 0:00:56.3]} 38. Rxe8 {[%clk 0:00:43.1]} 38... Kxe8
{[%clk 0:00:57.2]} 39. Kg2 {[%clk 0:00:42.1]} 39... Nf6 {[%clk 0:00:54.7]} 40.
Bb8 {[%clk 0:00:40.8]} 40... Nd7 {[%clk 0:00:42.5]} 41. Bf4 {[%clk 0:00:39]}
41... Nf6 {[%clk 0:00:39.2]} 42. h6 {[%clk 0:00:38.4]} 42... Kf7 {[%clk
0:00:37]} 43. d6 {[%clk 0:00:36.1]} 43... Kg6 {[%clk 0:00:35.3]} 44. Be5 {[%clk
0:00:34]} 44... Nd7 {[%clk 0:00:34.5]} 45. Bxd4 {[%clk 0:00:33]} 45... cxd4
{[%clk 0:00:33.8]} 46. Kf3 {[%clk 0:00:33.9]} 46... Nc5 {[%clk 0:00:28.6]} 47.
g4 {[%clk 0:00:31.1]} 47... Kxh6 {[%clk 0:00:24.7]} 48. d7 {[%clk 0:00:27.3]}
48... Nxd7 {[%clk 0:00:24.4]} 49. Ke4 {[%clk 0:00:28.2]} 49... Kg5 {[%clk
0:00:24.3]} 50. Kxd4 {[%clk 0:00:28.2]} 50... Kxg4 {[%clk 0:00:24.9]} 51. Kd5
{[%clk 0:00:28.2]} 51... Kf3 {[%clk 0:00:24.1]} 52. Kc6 {[%clk 0:00:27.8]} 52...
Ne5+ {[%clk 0:00:23.7]} 53. Kb7 {[%clk 0:00:27.6]} 53... Ke3 {[%clk 0:00:17.3]}
54. Kxa7 {[%clk 0:00:26.9]} 54... Nd7 {[%clk 0:00:17.8]} 55. Kb7 {[%clk
0:00:26.1]} 55... Kxd3 {[%clk 0:00:14.8]} 56. Kc7 {[%clk 0:00:25.7]} 56... Kc2
{[%clk 0:00:10]} 57. b4 {[%clk 0:00:25]} 57... Kc3 {[%clk 0:00:08.1]} 58. a3
{[%clk 0:00:23.2]} 58... Kb3 {[%clk 0:00:05.6]} 59. Kxd7 {[%clk 0:00:22.7]}
59... Kxa3 {[%clk 0:00:06.1]} 60. Kc6 {[%clk 0:00:21.2]} 60... Kxb4 {[%clk
0:00:05.7]} 61. Kxb6 {[%clk 0:00:20.9]} 1/2-1/2